{"text_format":"1","workbook":"xlsx","n_sheets":3,"sheets":["案内","高速道路からの道順","申込書 "],"not_rendered":{"charts":0,"images":25,"macros":1,"external_links":1,"defined_names":8,"comments":1,"pivot_tables":0},"unopened":[],"bounds":{"document_bytes":16777216,"sheet_cells":100000,"rows_first":2000,"rows_last":500,"rows_between":2000,"halvings":0,"cell_chars":16384,"cell_head_chars":4096},"cells_cut":0,"cells_raw":0,"read":"whole","date_system":"1900"}

{"sheet":"案内","index":0,"n_rows":91,"n_cols":55,"rows_kept":91,"cut":false,"hidden":false,"merged":[[1,30,1,36],[27,29,27,30],[28,29,28,30],[29,29,29,30],[49,3,50,11],[65,3,66,10],[68,14,69,24],[71,14,72,24],[74,14,75,24]]}
[]
[null,null,null,null,null,null,null,null,null,null,null,null,null,null,null,null,null,null,null,null,null,null,null,null,null,null,null,null,null,null,"保養所利用案内"]
[]
[null,null,null,null,null,null,null,null,null,null,null,null,null,null,null,null,null,null,null,null,null,null,null,null,null,null,null,null,null,"■利用者の範囲"]
[null,null,null,null,null,null,null,null,null,null,null,null,null,null,null,null,null,null,null,null,null,null,null,null,null,null,null,null,null,"　トヨタ紡織㈱の社員・ＯＢとその家族、社員・その家族が同伴した場合の友人・知人・親戚"]
[null,null,null,null,null,null,null,null,null,null,null,null,null,null,null,null,null,null,null,null,null,null,null,null,null,null,null,null,null,"　部門の紹介する取引先、関係会社社員と社員同伴の家族および労務厚生室長が認めた人。"]
[null,null,null,null,null,null,null,null,null,null,null,null,null,null,null,null,null,null,null,null,null,null,null,null,null,null,null,null,null,"■予約受付"]
[null,null,null,null,null,null,null,null,null,null,null,null,null,null,null,null,null,null,null,null,null,null,null,null,null,null,null,null,null,"　利用日の2ヶ月前から10日前まで。（利用者の決定は原則として先着順とします）"]
[null,null,null,null,null,null,null,null,null,null,null,null,null,null,null,null,null,null,null,null,null,null,null,null,null,null,null,null,null,"■予約方法"]
[null,null,null,null,null,null,null,null,null,null,null,null,null,null,null,null,null,null,null,null,null,null,null,null,null,null,null,null,null,"　ＴＢｺｰﾎﾟﾚｰﾄｻｰﾋﾞｽへ電話にて予約を入れる"]
[null,null,null,null,null,null,null,null,null,null,null,null,null,null,null,null,null,null,null,null,null,null,null,null,null,null,null,null,null,"■予約変更"]
[null,null,null,null,null,null,null,null,null,null,null,null,null,null,null,null,null,null,null,null,null,null,null,null,null,null,null,null,null,"　利用申込の取消し・変更などは、必ずＴＢｺｰﾎﾟﾚｰﾄｻｰﾋﾞｽへご連絡ください。"]
[null,null,null,null,null,null,null,null,null,null,null,null,null,null,null,null,null,null,null,null,null,null,null,null,null,null,null,null,null,"■キャンセル料"]
[null,null,null,null,null,null,null,null,null,null,null,null,null,null,null,null,null,null,null,null,null,null,null,null,null,null,null,null,null,"　利用日7日前の17：30まで・・・無料"]
[null,null,null,null,null,null,null,null,null,null,null,null,null,null,null,null,null,null,null,null,null,null,null,null,null,null,null,null,null,"　利用日2日前の17：30まで・・・利用料・食事代の20％"]
[null,null,null,null,null,null,null,null,null,null,null,null,null,null,null,null,null,null,null,null,null,null,null,null,null,null,null,null,null,"　利用日前日の17：30まで・・・・利用料・食事代の50％"]
[null,null,null,null,null,null,null,null,null,null,null,null,null,null,null,null,null,null,null,null,null,null,null,null,null,null,null,null,null,"　利用日当日・・・・・・・利用料・食事代の100％"]
[null,null,null,null,null,null,null,null,null,null,null,null,null,null,null,null,null,null,null,null,null,null,null,null,null,null,null,null,null,"■定休日"]
[null,null,null,null,null,null,null,null,null,null,null,null,null,null,null,null,null,null,null,null,null,null,null,null,null,null,null,null,null,"　毎週火・水曜日（宿泊不可）　※長期連休中は営業いたします"]
[null,null,null,null,null,null,null,null,null,null,null,null,null,null,null,null,null,null,null,null,null,null,null,null,null,null,null,null,null,"　※定休日の変更がある場合がございますが、ご了承ください。"]
[null,null,null,null,null,null,null,null,null,null,null,null,null,null,null,null,null,null,null,null,null,null,null,null,null,null,null,null,null,"■料金のお支払"]
[null,null,null,null,null,null,null,null,null,null,null,null,null,null,null,null,null,null,null,null,null,null,null,null,null,null,null,null,null,"　利用料・食事代はすべて保養所にてお支払ください。"]
[null,null,null,null,null,null,null,null,null,null,null,null,null,null,null,null,null,null,null,null,null,null,null,null,null,null,null,null,null,"　但し、研修・会議の利用の場合に限り、請求書を発行する事ができます。"]
[null,null,null,null,null,null,null,null,null,null,null,null,null,null,null,null,null,null,null,null,null,null,null,null,null,null,null,null,null,"■利用時間"]
[null,null,null,null,null,null,null,null,null,null,null,null,null,null,null,null,null,null,null,null,null,null,null,null,null,null,null,null,null,"　宿泊・・・16：00～翌日10：00",null,null,null,null,null,null,null,null,null,"■","娯楽施設"]
[null,null,null,null,null,null,null,null,null,null,null,null,null,null,null,null,null,null,null,null,null,null,null,null,null,null,null,null,null,null,null,null,null,null,null,null,null,null,null,null,"麻雀（予約制）、カラオケルーム"]
[null,"交通機関",null,null,null,null,null,null,null,null,null,null,null,null,null,null,null,null,null,null,null,null,null,null,null,null,null,null,null,"■食事時間",null,null,null,null,null,null,null,null,null,null,"23：00まで使用可"]
[null,null,"自動車利用の場合",null,null,null,null,null,null,null,null,null,null,null,null,null,null,null,null,null,null,null,null,null,null,null,null,null,null,"朝食",null,"7：00～9：00",null,null,null,null,null,null,null,"※","他のお客様へ迷惑のかからないよう"]
[null,null,"・東名高速道路三ケ日ｲﾝﾀｰを出て500ｍ程先を左折し、山道へ入ります。",null,null,null,null,null,null,null,null,null,null,null,null,null,null,null,null,null,null,null,null,null,null,null,null,null,null,"夕食",null,"1.5時間制",null,null,null,null,null,null,null,null,"ﾙｰﾙを守ってご利用ください。"]
[null,null,"・保養所への山道は細く見通しの悪い箇所が多くありますので",null,null,null,null,null,null,null,null,null,null,null,null,null,null,null,null,null,null,null,null,null,null,null,null,null,null,null,null,"(開始時間18:00～20:00)"]
[null,null,"　必ず警笛を鳴らし徐行安全運転を心がけてください。",null,null,null,null,null,null,null,null,null,null,null,null,null,null,null,null,null,null,null,null,null,null,null,null,null,null,"■入浴時間",null,null,null,null,null,null,null,null,null,"■","各部屋の備品"]
[null,null,"・上図●印の『トヨタ紡織三ケ日保養所』看板の矢印に従いお進みください。",null,null,null,null,null,null,null,null,null,null,null,null,null,null,null,null,null,null,null,null,null,null,null,null,null,null,"　16：00～翌朝7：30",null,null,null,null,null,null,null,null,null,null,"・歯ブラシ＆タオルセット"]
[null,null,"・三ケ日インターから約5分（約2.7ｋｍ）で保養所です。",null,null,null,null,null,null,null,null,null,null,null,null,null,null,null,null,null,null,null,null,null,null,null,null,null,null,"■門限",null,null,null,null,null,null,null,null,null,null,"・バスタオル"]
[null,null,null,null,null,null,null,null,null,null,null,null,null,null,null,null,null,null,null,null,null,null,null,null,null,null,null,null,null,"　22：00です。厳守ください。",null,null,null,null,null,null,null,null,null,null,"・作務衣（部屋着・寝巻き用）"]
[null,null,"鉄道利用の場合",null,null,null,null,null,null,null,null,null,null,null,null,null,null,null,null,null,null,null,null,null,null,null,null,null,null,"■客室"]
[null,null,"・ＪＲ東海道線『新所原駅』下車、天竜浜名湖鉄道に乗り換え『東都筑駅』下車。",null,null,null,null,null,null,null,null,null,null,null,null,null,null,null,null,null,null,null,null,null,null,null,null,null,null,"　2人部屋（洋室）・・・230、202"]
[null,null,"・東都筑駅前よりタクシー。（約5分）",null,null,null,null,null,null,null,null,null,null,null,null,null,null,null,null,null,null,null,null,null,null,null,null,null,null,"　4人部屋（和室）・・・201、203、205、206、207、208、210、211、212"]
[null,null,null,null,null,null,null,null,null,null,null,null,null,null,null,null,null,null,null,null,null,null,null,null,null,null,null,null,null,"　6人部屋（和室）・・・222、223、225、226"]
[null,null,null,null,null,null,null,null,null,null,null,null,null,null,null,null,null,null,null,null,null,null,null,null,null,null,null,null,null,"■その他"]
[null,null,null,null," ＪＲ東海道線",null,null,null,null,null,null,null,null,null,null,null,null,null,null,null,null,null,null,null,null,null,null,null,null,"　・飲食物の持込については、衛生上責任を持ちかねますので禁止いたします。"]
[null,null,null,null,null,null,null,null,null,null,null,null,null,null,null,null,null,null,null,null,null,null,null,null,null,null,null,null,null,"　・滞在中は、管理人の指示に従ってください。"]
[]
[null,null,null,null,null,"（9分）"]
[null,null,null,null,null,null,null,null,null,null,null,"（38分）",null,null,null,null,null,null,"（5分）"]
[]
[null,null,null,null,null,null,null,null,"（乗換）天竜浜名湖鉄道",null,null,null,null,null,null,null,null,null," タクシー"]
[]
[]
[]
[null,null,null,"≪一品料理について≫"]
[]
[]
[null,null,"・当日提供できる一品料理は、チェックイン時にご確認ください。"]
[]
[null,null,"・売り切れの際には、ご容赦くださいますようお願い致します。"]
[]
[null,null,"・団体様でご利用いただく場合は、申込書提出時にご注文をお願い致します。",null,null,null,null,null,null,null,null,null,null,null,null,null,null,null,null,null,null,null,null,null,null,null,null,null,null,null,null,null,null,null,null,null,null,null,null,null,null,null,null,null,null,null,null,null,null,null,null,null,null,null,"←（覚え）この図は、『案内・掲示物』にある。"]
[]
[null,null,"・舟盛等の魚料理は、申込書提出時にご注文をお願い致します。"]
[]
[null,null,"・提供させていただくまでに、お時間がかかる場合がございます。"]
[null,null,"　予めご了承くださいますよう、お願い致します。"]
[]
[]
[]
[null,null,null,"≪新・発・売≫"]
[]
[]
[null,null,null,null,null,null,null,null,null,null,null,null,null,null,"三ヶ日みかんシャーベット"]
[]
[]
[null,null,null,null,null,null,null,null,null,null,null,null,null,null,"「三ヶ日みかん少年」　"]
[]
[]
[null,null,null,null,null,null,null,null,null,null,null,null,null,null,"260円"]
[]
[]
[]
[]
[]
[]
[]
[]
[null,null,"・ペットボトル飲料各種　160円～",null,null,null,null,null,null,null,null,null,null,null,null,null,"5号15cm(4～6名) 　　　 3,500円"]
[]
[null,null,"・ポットコーヒー　1,080円",null,null,null,null,null,null,null,null,null,null,null,null,null,"6号18cm(6～8名) 　　　 4,500円"]
[]
[null,null,null,null,null,null,null,null,null,null,null,null,null,null,null,null,"7号21cm（9～11人）    6,500円"]
[]
[]
[null,null,"申込書提出時にご注文ください",null,null,null,null,null,null,null,null,null,null,null,null,null,"申込書提出時にご注文ください"]

{"sheet":"高速道路からの道順","index":1,"n_rows":83,"n_cols":8,"rows_kept":83,"cut":false,"hidden":false,"merged":[]}
[null,null,null,null,null,null,null,"①"]
[]
[]
[]
[]
[]
[]
[]
[]
[]
[]
[]
[null,null,null,null,null,null,null,"②"]
[]
[]
[]
[]
[]
[]
[]
[]
[]
[]
[]
[null,null,null,null,null,null,null,"③"]
[]
[]
[]
[]
[]
[]
[]
[]
[]
[]
[null,null,null,null,null,null,null,"④"]
[]
[]
[]
[]
[]
[]
[]
[]
[]
[]
[]
[null,null,null,null,null,null,null,"⑤"]
[]
[]
[]
[]
[]
[]
[]
[]
[]
[]
[]
[null,null,null,null,null,null,null,"⑥"]
[]
[]
[]
[]
[]
[]
[]
[]
[]
[]
[]
[null,null,null,null,null,null,null,"⑦"]
[]
[]
[]
[]
[]
[]
[]
[]
[]
[]
[null,null,null,null,null,null,null,"⑧"]

{"sheet":"申込書 ","index":2,"n_rows":142,"n_cols":39,"rows_kept":142,"cut":false,"hidden":false,"merged":[[60,0,62,3],[60,32,60,38],[61,32,62,37],[61,38,62,38],[67,36,67,37],[68,36,68,37],[51,31,54,31],[51,32,54,33],[51,34,54,34],[51,35,54,37],[51,38,54,38],[53,12,53,13],[55,32,55,38],[56,32,57,37],[56,38,57,38],[44,0,46,1],[44,9,45,10],[44,12,45,13],[44,15,45,17],[47,0,47,18],[47,19,54,20],[47,21,50,21],[48,9,49,10],[48,12,49,13],[48,14,49,14],[48,15,49,17],[50,9,50,10],[50,12,50,13],[50,15,50,17],[51,0,53,1],[51,9,52,10],[51,12,52,13],[51,15,52,17],[36,2,42,3],[36,9,37,10],[36,12,37,13],[36,15,37,17],[36,45,36,46],[37,45,37,46],[38,9,39,10],[38,12,39,13],[38,15,39,17],[38,45,38,46],[40,9,41,10],[40,12,41,13],[41,4,41,8],[42,4,42,8],[42,9,43,10],[42,12,43,13],[42,15,43,17],[42,21,42,28],[43,4,43,8],[38,4,38,8],[39,4,39,8],[40,4,40,8],[26,45,26,46],[27,0,43,1],[27,2,29,3],[27,19,46,20],[27,45,27,46],[28,45,28,46],[29,45,29,46],[30,2,30,8],[30,9,30,10],[30,12,30,13],[30,15,30,17],[31,4,33,8],[31,9,33,18],[31,45,31,46],[32,43,38,43],[32,45,32,46],[33,45,33,46],[34,2,34,8],[34,9,34,10],[34,12,34,13],[34,15,34,17],[34,21,41,21],[34,45,34,46],[35,2,35,8],[93,18,94,19],[95,18,96,19],[97,18,98,19],[99,18,100,19],[101,18,102,19],[103,18,104,19],[105,18,106,19],[9,24,10,36],[101,33,102,35],[97,36,98,37],[17,26,18,27],[17,28,18,28],[17,29,18,31],[17,32,18,32],[16,0,16,38],[105,36,106,37],[99,36,100,37],[97,3,98,3],[97,4,98,9],[97,11,98,14],[97,15,98,17],[97,20,98,20],[97,21,98,27],[105,20,106,20],[105,21,106,27],[105,29,106,32],[105,33,106,35],[101,36,102,37],[103,3,104,3],[103,4,104,9],[103,11,104,14],[103,15,104,17],[103,20,104,20],[103,21,104,27],[103,29,104,32],[103,33,104,35],[103,36,104,37],[101,3,102,3],[101,4,102,9],[101,11,102,14],[101,21,102,27],[101,29,102,32],[128,0,128,1],[130,0,130,1],[132,0,132,1],[134,0,134,1],[136,0,136,1],[105,3,106,3],[105,4,106,9],[105,11,106,14],[105,15,106,17],[120,0,120,1],[122,0,122,1],[118,0,118,1],[76,1,106,2],[76,4,76,9],[76,11,76,14],[76,15,76,17],[79,4,80,9],[79,11,80,14],[87,3,88,3],[117,0,117,1],[124,0,124,1],[126,0,126,1],[95,3,96,3],[95,4,96,9],[97,29,98,32],[97,33,98,35],[101,15,102,17],[101,20,102,20],[99,3,100,3],[99,4,100,9],[99,11,100,14],[99,15,100,17],[99,20,100,20],[99,21,100,27],[99,29,100,32],[99,33,100,35],[95,11,96,14],[95,15,96,17],[95,20,96,20],[95,21,96,27],[95,29,96,32],[95,33,96,35],[95,36,96,37],[89,3,90,3],[89,4,90,9],[89,11,90,14],[89,15,90,17],[89,20,90,20],[89,21,90,27],[89,29,90,32],[89,33,90,35],[93,36,94,37],[93,3,94,3],[93,4,94,9],[93,11,94,14],[93,15,94,17],[93,20,94,20],[93,21,94,27],[93,29,94,32],[93,33,94,35],[91,3,92,3],[91,4,92,9],[91,11,92,14],[91,15,92,17],[91,20,92,20],[91,21,92,27],[91,29,92,32],[83,36,84,37],[91,33,92,35],[91,36,92,37],[83,18,84,19],[85,18,86,19],[91,18,92,19],[87,4,88,9],[87,11,88,14],[87,15,88,17],[87,20,88,20],[87,21,88,27],[87,29,88,32],[87,33,88,35],[87,36,88,37],[89,36,90,37],[87,18,88,19],[89,18,90,19],[85,36,86,37],[9,17,10,18],[9,19,10,19],[9,20,10,20],[23,33,23,37],[18,20,18,24],[19,20,19,25],[20,20,20,24],[17,18,22,19],[17,20,17,25],[17,33,17,38],[18,33,18,38],[20,33,20,38],[21,33,21,38],[28,35,28,37],[32,32,32,33],[32,35,32,37],[76,21,76,27],[76,29,76,32],[76,33,76,35],[76,36,76,37],[77,15,78,17],[77,20,78,20],[77,21,78,27],[1,0,1,38],[2,0,2,38],[4,0,4,38],[6,0,6,2],[6,11,6,13],[6,14,6,22],[6,27,6,37],[8,0,8,2],[8,24,8,27],[7,0,7,2],[7,24,7,27],[6,4,6,6],[6,8,6,10],[7,3,7,23],[7,28,7,38],[8,11,8,13],[8,3,8,10],[8,14,8,23],[8,28,8,38],[21,29,22,31],[21,32,22,32],[22,4,22,8],[22,20,22,25],[17,0,22,1],[17,2,22,3],[17,4,17,8],[17,9,18,10],[17,11,18,11],[17,12,18,14],[17,15,18,15],[17,16,22,17],[23,12,23,13],[23,15,23,16],[23,17,23,18],[23,19,23,20],[23,22,23,24],[23,25,23,26],[23,27,23,28],[21,26,22,27],[21,28,22,28],[37,4,37,8],[33,32,33,33],[19,26,20,27],[19,28,20,28],[19,29,20,31],[19,32,20,32],[21,12,22,14],[21,15,22,15],[21,20,21,25],[23,30,23,32],[25,0,25,38],[26,0,26,38],[27,4,27,8],[27,9,27,10],[27,12,27,13],[27,15,27,17],[27,32,27,33],[27,35,27,37],[30,35,30,37],[27,29,27,30],[31,35,31,37],[22,33,22,38],[23,0,23,8],[23,10,23,11],[28,12,28,13],[28,15,28,17],[28,29,28,30],[28,32,28,33],[30,29,30,30],[30,32,30,33],[31,29,31,30],[31,32,31,33],[29,29,29,30],[29,32,29,33],[29,35,29,37],[37,32,37,33],[40,32,40,33],[46,12,46,13],[38,29,38,30],[38,32,38,33],[44,32,44,33],[44,35,44,37],[48,22,48,28],[48,29,48,30],[48,32,48,33],[48,35,48,37],[42,32,42,33],[33,35,33,37],[34,35,34,37],[42,29,42,30],[42,35,42,37],[33,29,33,30],[34,29,34,30],[34,32,34,33],[39,32,39,33],[39,35,39,37],[40,29,40,30],[40,35,40,37],[41,29,41,30],[41,32,41,33],[35,35,35,37],[36,35,36,37],[38,35,38,37],[41,35,41,37],[37,35,37,37],[39,29,39,30],[37,29,37,30],[35,29,35,30],[35,32,35,33],[36,29,36,30],[36,32,36,33],[83,29,84,32],[83,33,84,35],[79,33,80,35],[79,36,80,37],[81,4,82,9],[81,11,82,14],[85,4,86,9],[43,29,43,30],[43,32,43,33],[43,35,43,37],[79,29,80,32],[85,11,86,14],[85,15,86,17],[85,20,86,20],[85,21,86,27],[85,29,86,32],[85,33,86,35],[81,29,82,32],[81,33,82,35],[81,36,82,37],[76,18,76,19],[77,33,78,35],[77,36,78,37],[77,29,78,32],[77,3,78,3],[81,3,82,3],[79,3,80,3],[85,3,86,3],[83,3,84,3],[79,15,80,17],[79,20,80,20],[79,21,80,27],[83,4,84,9],[83,11,84,14],[83,15,84,17],[83,20,84,20],[83,21,84,27],[77,4,78,9],[77,11,78,14],[81,15,82,17],[81,20,82,20],[81,21,82,27],[77,18,78,19],[79,18,80,19],[81,18,82,19],[69,36,69,37],[70,32,70,38],[73,0,73,38],[45,29,45,30],[45,32,45,33],[45,35,45,37],[46,29,46,30],[46,32,46,33],[46,35,46,37],[47,22,47,28],[47,29,47,30],[47,32,47,33],[47,35,47,37],[66,30,66,32],[66,33,66,35],[49,22,49,28],[49,29,49,30],[49,32,49,33],[49,35,49,37],[50,22,50,28],[50,29,50,30],[50,32,50,33],[50,35,50,37],[51,29,54,30],[12,10,12,15],[12,16,13,17],[12,18,13,19],[12,20,14,25],[12,26,14,28],[12,29,14,31],[44,29,44,30],[32,29,32,30],[28,4,28,8],[36,4,36,8],[18,4,18,7],[21,4,21,8],[21,9,22,10],[21,11,22,11],[19,4,19,8],[19,9,20,10],[19,11,20,11],[19,12,20,14],[19,15,20,15],[20,4,20,7],[35,9,35,10],[35,12,35,13],[35,15,35,17],[28,9,28,10],[9,21,10,22],[12,32,14,32],[12,33,14,35],[12,36,14,38],[13,0,13,5],[13,6,13,7],[13,8,13,9],[13,10,13,15],[14,0,14,5],[14,6,14,7],[14,8,14,9],[9,23,10,23],[9,11,10,11],[9,0,10,2],[9,3,10,4],[9,5,10,5],[9,6,10,7],[9,8,10,8],[9,9,10,9],[9,10,10,10],[9,14,10,15],[9,16,10,16],[9,12,10,13],[12,0,12,9]]}
[]
["ご予約ありがとうございます。"]
["１枚目と２枚目をご提出お願いいたします。"]
[]
["　三ケ日保養所　利用申込書　兼　利用券①　2024/4～2024/9"]
["★太枠内のみご記入のうえ10日前迄にTBｺｰﾎﾟﾚｰﾄｻｰﾋﾞｽへご提出ください。",null,null,null,null,null,null,null,null,null,null,null,null,null,null,null,null,null,null,"＝OB様用＝"]
["申込者",null,null,"〒",null,null,null,"―",null,null,null,"氏名",null,null,null,null,null,null,null,null,null,null,null,"（フリガナ）"]
["住所",null,null,null,null,null,null,null,null,null,null,null,null,null,null,null,null,null,null,null,null,null,null,null,"支払方法",null,null,null,"現金（現地支払）"]
["TEL",null,null,null,null,null,null,null,null,null,null,"携帯№",null,null,null,null,null,null,null,null,null,null,null,null,"利用形態",null,null,null,"家族慰安・懇親会・親睦・研修・みかん狩り"]
["利用期間",null,null,null,null,"月",null,null,"日","( ",null,") ","～",null,null,null,"月",null,null,"日","( ",null,null,") ","※宿泊 16：00～翌10：00 ( 門限 22：00 )　　"]
[]
[]
["チェックイン、チェックアウト時間",null,null,null,null,null,null,null,null,null,"夕食希望時間",null,null,null,null,null,null,null,null,null,"研修室利用時間",null,null,null,null,null,null,null,null,null,null,null,"～"]
["チェックイン(16:00～)",null,null,null,null,null,null,null,null,null,"1.5時間制"]
["チェックアウト(～10:00)",null,null,null,null,null,null,null,null,null,"（夕食開始時間）18:00～20:00"]
[]
["施　　　　　　　設　　　　　　　利　　　　　　　用　　　　　　　料"]
["社員・家族・OB会員",null,"宿　泊",null,"大人（中学以上）",null,null,null,null,null,null,"名",{"$f":"+J18*E19","v":0},null,null,"円","親戚・友人・知人　関係会社",null,"宿　泊",null,"大人（中学以上）",null,null,null,null,null,null,null,"名",{"$f":"+U19*AA18","v":0},null,null,"円","娯楽施設(無料)"]
[null,null,null,null,1650,null,null,null,"円",null,null,null,null,null,null,null,null,null,null,null,2750,null,null,null,null,"円",null,null,null,null,null,null,null,"麻雀(事前予約）"]
[null,null,null,null,"小人（小学生）",null,null,null,null,null,null,"名",{"$f":"+J20*E21","v":0},null,null,"円",null,null,null,null,"小人（小学生）",null,null,null,null,null,null,null,"名",{"$f":"+U21*AA20","v":0},null,null,"円",null,null,null,null,"台"]
[null,null,null,null,770,null,null,null,"円",null,null,null,null,null,null,null,null,null,null,null,1100,null,null,null,null,"円",null,null,null,null,null,null,null,"カラオケ(1.5H)"]
[null,null,null,null,"幼児（小学生未満）",null,null,null,null,null,null,"名",{"$f":"+J22*0","v":0},null,null,"円",null,null,null,null,"幼児（小学生未満）",null,null,null,null,null,null,null,"名",{"$f":"0*AA22","v":0},null,null,"円","チェックイン時に予約"]
[null,null,null,null,"無料",null,null,null,null,null,null,null,null,null,null,null,null,null,null,null,"無　料",null,null,null,null,null,null,null,null,null,null,null,null,"①利用料（小計)"]
["合 計 人 数",null,null,null,null,null,null,null,null,null,"大　人",null,{"$f":"+J18+AA18","v":0},null,"名","・",null,"小　人",null,{"$f":"+J20+AA20","v":0},null,"名","・",null,null,"幼　児",null,{"$f":"+J22+AA22","v":0},null,"名",null,null,null,{"$f":"+M18+M20+M22+AD18+AD20+AD22","v":0},null,null,null,null,"円"]
[]
["　　　　'食　　　　　事　　　　　代　　　　＆　　　　飲　　　　　料　　　　　代"]
["　　　　　　　　　　　　　　　　　　　'※鍋のご注文は2人前から承ります。（表示価格は、1人前の価格となっております。）"]
["夕　食",null,"懐石",null,"雅（料理長おまかせ）",null,null,null,null,4500,null,"円",null,null,"食",{"$f":"+J28*M28","v":0},null,null,"円","一　品　料　理",null,"刺身盛合せ （3人前）",null,null,null,null,null,null,null,3000,null,"円",null,null,"食",{"$f":"+AD28*AG28","v":0},null,null,"円"]
[null,null,null,null,"桔梗",null,null,null,null,2750,null,"円",null,null,"食",{"$f":"+J29*M29","v":0},null,null,"円",null,null,"うなぎの蒲焼き（浜松産・一匹分）",null,null,null,null,null,null,null,2500,null,"円",null,null,"食",{"$f":"+AD29*AG29","v":0},null,null,"円"]
[null,null,null,null,"※仕入れ等 状況により内容が変更となる場合がございます。",null,null,null,null,null,null,null,null,null,null,null,null,null,null,null,null,"鶏唐揚げ",null,null,null,null,null,null,null,700,null,"円",null,null,"食",0,null,null,"円"]
[null,null,"うな重御膳(浜松産)",null,null,null,null,null,null,3000,null,"円",null,null,"食",{"$f":"+J31*M31","v":0},null,null,"円",null,null,"一口カツ（2個）",null,null,null,null,null,null,null,400,null,"円",null,null,"食",0,null,null,"円"]
[null,null,null,null,null,null,null,null,null,null,null,null,null,null,null,null,null,null,null,null,null,"焼き鳥（3本）",null,null,null,null,null,null,null,400,null,"円",null,null,"食",0,null,null,"円"]
[null,null,null,null,null,null,null,null,null,null,null,null,null,null,null,null,null,null,null,null,null,"茶碗蒸し",null,null,null,null,null,null,null,200,null,"円",null,null,"食",0,null,null,"円"]
[null,null,null,null,null,null,null,null,null,null,null,null,null,null,null,null,null,null,null,null,null,"蒸し鶏サラダ",null,null,null,null,null,null,null,600,null,"円",null,null,"食",0,null,null,"円"]
[null,null,"お子様セット(ジュース付)",null,null,null,null,null,null,750,null,"円",null,null,"食",{"$f":"+J35*M35","v":0},null,null,"円",null,null,"期間限定メニュー","浜松餃子(10ｹ)",null,null,null,null,null,null,700,null,"円",null,null,"食",0,null,null,"円"]
[null,null,"お子様御膳(小学生以上)",null,null,null,null,null,null,1650,null,"円",null,null,"食",0,null,null,"円",null,null,null,"肉巻き餃子(5ｹ)",null,null,null,null,null,null,600,null,"円",null,null,"食",0,null,null,"円"]
[null,null,"(2人前から承ります）\n鍋料理",null,"牛しゃぶしゃぶ",null,null,null,null,3200,null,null,null,null,null,{"$f":"+J37*M37","v":0},null,null,null,null,null,null,"ピーマンの肉詰め焼き",null,null,null,null,null,null,500,null,"円",null,null,"食",0,null,null,"円"]
[null,null,null,null,"（ご飯・めんいちうどん半玉付）",null,null,null,null,null,null,"円",null,null,"食",null,null,null,"円",null,null,null,"冷奴",null,null,null,null,null,null,300,null,"円",null,null,"食",0,null,null,"円"]
[null,null,null,null,"牛すき焼き",null,null,null,null,3200,null,null,null,null,null,{"$f":"+J39*M39","v":0},null,null,null,null,null,null,"枝豆",null,null,null,null,null,null,300,null,"円",null,null,"食",0,null,null,"円"]
[null,null,null,null,"（ご飯・めんいちうどん半玉付）",null,null,null,null,null,null,"円",null,null,"食",null,null,null,"円",null,null,null,"板わさ",null,null,null,null,null,null,300,null,"円",null,null,"食",0,null,null,"円"]
[null,null,null,null,"牛もつ鍋",null,null,null,null,2800,null,null,null,null,null,{"$f":"+J41*M41","v":0},null,null,null,null,null,null,"浜松産　新たまスライス",null,null,null,null,null,null,400,null,"円",null,null,"食",0,null,null,"円"]
[null,null,null,null,"（ご飯・めんいちうどん半玉付）",null,null,null,null,null,null,"円",null,null,"食",null,null,null,"円",null,null,null,"エシャレット生ハム巻き",null,null,null,null,null,null,400,null,"円",null,null,"食",0,null,null,"円"]
[null,null,null,null,"地鶏のちゃんこ鍋",null,null,null,null,2800,null,null,null,null,null,{"$f":"+J43*M43","v":0},null,null,null,null,null,"ご飯※鍋・懐石には1膳付いてます",null,null,null,null,null,null,null,120,null,"円",null,null,"食",0,null,null,"円"]
[null,null,null,null,"（ご飯・めんいちうどん半玉付）",null,null,null,null,null,null,"円",null,null,"食",null,null,null,"円",null,null,"味噌汁",null,null,null,null,null,null,null,120,null,"円",null,null,"食",0,null,null,"円"]
["朝食",null,"和定食",null,null,null,null,null,null,660,null,null,null,null,null,{"$f":"+J45*M45","v":0},null,null,null,null,null,"追加用・牛しゃぶ肉",null,null,null,null,null,null,null,1500,null,"円",null,null,"食",0,null,null,"円"]
[null,null,"※4才以上のお子様から有料",null,null,null,null,null,null,null,null,"円",null,null,"食",null,null,null,"円",null,null,"追加用・牛すき肉",null,null,null,null,null,null,null,1500,null,"円",null,null,"食",0,null,null,"円"]
[null,null,"※３才以下のお子様無料(食数のみ記入）",null,null,null,null,null,null,null,null,null,null,null,"食",null,null,null,null,null,null,"おつまみ（柿ピー・チョコ他）",null,null,null,null,null,null,null,350,null,"円",null,null,"食",0,null,null,"円"]
[null,null,null,null,null,null,null,null,null,null,null,null,null,null,null,null,null,null,null,"飲　料",null,"目安","みかんシャーベット",null,null,null,null,null,null,300,null,"円",null,null,"食",0,null,null,"円"]
[null,null,null,null,null,null,null,null,null,null,null,null,null,null,null,null,null,null,null,null,null,null,"瓶ビール（中・500ml）",null,null,null,null,null,null,400,null,"円",null,null,"本",0,null,null,"円"]
[null,null,null,null,null,null,null,null,null,null,null,null,null,null,null,null,null,null,null,null,null,null,"ウーロン茶（200ml）",null,null,null,null,null,null,120,null,"円",null,null,"本",0,null,null,"円"]
[null,null,null,null,null,null,null,null,null,null,null,null,null,null,null,null,null,null,null,null,null,null,"ジュース（200ml）",null,null,null,null,null,null,120,null,"円",null,null,"本",0,null,null,"円"]
[null,null,null,null,null,null,null,null,null,null,null,null,null,null,null,null,null,null,null,null,null,"ポットコーヒー（研修用）",null,null,null,null,null,null,null,1080,null,"円",null,null,"本",{"$f":"+AD52*AG52","v":0},null,null,"円"]
[null,null,null,null,null,null,null,null,null,null,null,null,null,null,null,null,null,null,null,null,null,"※約20人分　※食堂にてお渡し"]
[null,null,null,null,null,null,null,null,null,null,null,null,null,null,null,null,null,null,null,null,null,"お渡し時間を記入してください"]
[null,null,null,null,null,null,null,null,null,null,null,null,null,null,null,null,null,null,null,null,null,null,null,null,null,null,"時",null,"分"]
[null,null,null,null,null,null,null,null,null,null,null,null,null,null,null,null,null,null,null,null,null,"*税込み価格で表示しております。",null,null,null,null,null,null,null,null,null,null,"②'食 事 代 （小計）"]
[null,null,null,null,null,null,null,null,null,null,null,null,null,null,null,null,null,null,null,null,null,"　*ポットコーヒー…８％(軽)",null,null,null,null,null,null,null,null,null,null,{"$f":"SUM(P28:R31,P32:R46,AJ28:AL55,A4836)","v":0},null,null,null,null,null,"円"]
[null,null,null,null,null,null,null,null,null,null,null,null,null,null,null,null,null,null,null,null,null,"　*ポットコーヒー以外…１０％"]
[]
[]
["備　考",null,null,null,null,null,null,null,null,null,null,null,null,null,null,null,null,null,null,null,null,null,null,null,null,null,null,null,null,null,null,null,"①+② 合計"]
[null,null,null,null,null,null,null,null,null,null,null,null,null,null,null,null,null,null,null,null,null,null,null,null,null,null,null,null,null,null,null,null,{"$f":"+AH24+AG57","v":0},null,null,null,null,null,"円"]
[]
[]
[]
["TBコーポレートサービス　　記入欄",null,null,null,null,null,null,null,null,null,null,null,null,null,null,null,null,null,null,null,null,null,null,null,null,null,null,null,null,null,"TBC確認用"]
[null,null,null,null,null,null,null,null,null,null,null,null,null,null,null,null,null,null,null,null,null,null,null,null,null,null,null,null,null,null,"申込書受領日",null,null,"受付け完了連絡日",null,null,"FAX送信"]
["利 用 部 屋"]
["　　230　・　222　・　223　・　225　・　226",null,null,null,null,null,null,null,null,null,null,null,null,null,null,null,null,null,null,null,null,null,null,null,null,null,null,null,null,null,null,null,null,null,null,null,"研修室"]
["　　201　・　202　・　203　・　205　・　206　・　207　・　208　・　210　・211 ・ 212",null,null,null,null,null,null,null,null,null,null,null,null,null,null,null,null,null,null,null,null,null,null,null,null,null,null,null,null,null,null,null,null,null,null,null,"麻雀"]
[null,null,null,null,null,null,null,null,null,null,null,null,null,null,null,null,null,null,null,null,null,null,null,null,null,null,null,null,null,null,null,null,"（改訂：2023年8月）"]
[]
[]
["　三ケ日保養所　利用申込書　兼　利用券②"]
[]
[null,null,null,"※宿泊台帳となる為、枠内はすべてご記入をお願い致します。"]
[null,"利　　　　用　　　　者　　　　名　　　　簿",null,"№","氏名",null,null,null,null,null,null,"従業員№",null,null,null,"続柄",null,null,"年齢",null,"№","氏名",null,null,null,null,null,null,null,"従業員№",null,null,null,"続柄",null,null,"年齢"]
[null,null,null,1,null,null,null,null,null,null,"男",null,null,null,null,null,null,null,null,null,16,null,null,null,null,null,null,null,"男"]
[null,null,null,null,null,null,null,null,null,null,"女",null,null,null,null,null,null,null,null,null,null,null,null,null,null,null,null,null,"女"]
[null,null,null,2,null,null,null,null,null,null,"男",null,null,null,null,null,null,null,null,null,17,null,null,null,null,null,null,null,"男"]
[null,null,null,null,null,null,null,null,null,null,"女",null,null,null,null,null,null,null,null,null,null,null,null,null,null,null,null,null,"女"]
[null,null,null,3,null,null,null,null,null,null,"男",null,null,null,null,null,null,null,null,null,18,null,null,null,null,null,null,null,"男"]
[null,null,null,null,null,null,null,null,null,null,"女",null,null,null,null,null,null,null,null,null,null,null,null,null,null,null,null,null,"女"]
[null,null,null,4,null,null,null,null,null,null,"男",null,null,null,null,null,null,null,null,null,19,null,null,null,null,null,null,null,"男"]
[null,null,null,null,null,null,null,null,null,null,"女",null,null,null,null,null,null,null,null,null,null,null,null,null,null,null,null,null,"女"]
[null,null,null,5,null,null,null,null,null,null,"男",null,null,null,null,null,null,null,null,null,20,null,null,null,null,null,null,null,"男"]
[null,null,null,null,null,null,null,null,null,null,"女",null,null,null,null,null,null,null,null,null,null,null,null,null,null,null,null,null,"女"]
[null,null,null,6,null,null,null,null,null,null,"男",null,null,null,null,null,null,null,null,null,21,null,null,null,null,null,null,null,"男"]
[null,null,null,null,null,null,null,null,null,null,"女",null,null,null,null,null,null,null,null,null,null,null,null,null,null,null,null,null,"女"]
[null,null,null,7,null,null,null,null,null,null,"男",null,null,null,null,null,null,null,null,null,22,null,null,null,null,null,null,null,"男"]
[null,null,null,null,null,null,null,null,null,null,"女",null,null,null,null,null,null,null,null,null,null,null,null,null,null,null,null,null,"女"]
[null,null,null,8,null,null,null,null,null,null,"男",null,null,null,null,null,null,null,null,null,23,null,null,null,null,null,null,null,"男"]
[null,null,null,null,null,null,null,null,null,null,"女",null,null,null,null,null,null,null,null,null,null,null,null,null,null,null,null,null,"女"]
[null,null,null,9,null,null,null,null,null,null,"男",null,null,null,null,null,null,null,null,null,24,null,null,null,null,null,null,null,"男"]
[null,null,null,null,null,null,null,null,null,null,"女",null,null,null,null,null,null,null,null,null,null,null,null,null,null,null,null,null,"女"]
[null,null,null,10,null,null,null,null,null,null,"男",null,null,null,null,null,null,null,null,null,25,null,null,null,null,null,null,null,"男"]
[null,null,null,null,null,null,null,null,null,null,"女",null,null,null,null,null,null,null,null,null,null,null,null,null,null,null,null,null,"女"]
[null,null,null,11,null,null,null,null,null,null,"男",null,null,null,null,null,null,null,null,null,26,null,null,null,null,null,null,null,"男"]
[null,null,null,null,null,null,null,null,null,null,"女",null,null,null,null,null,null,null,null,null,null,null,null,null,null,null,null,null,"女"]
[null,null,null,12,null,null,null,null,null,null,"男",null,null,null,null,null,null,null,null,null,27,null,null,null,null,null,null,null,"男"]
[null,null,null,null,null,null,null,null,null,null,"女",null,null,null,null,null,null,null,null,null,null,null,null,null,null,null,null,null,"女"]
[null,null,null,13,null,null,null,null,null,null,"男",null,null,null,null,null,null,null,null,null,28,null,null,null,null,null,null,null,"男"]
[null,null,null,null,null,null,null,null,null,null,"女",null,null,null,null,null,null,null,null,null,null,null,null,null,null,null,null,null,"女"]
[null,null,null,14,null,null,null,null,null,null,"男",null,null,null,null,null,null,null,null,null,29,null,null,null,null,null,null,null,"男"]
[null,null,null,null,null,null,null,null,null,null,"女",null,null,null,null,null,null,null,null,null,null,null,null,null,null,null,null,null,"女"]
[null,null,null,15,null,null,null,null,null,null,"男",null,null,null,null,null,null,null,null,null,30,null,null,null,null,null,null,null,"男"]
[null,null,null,null,null,null,null,null,null,null,"女",null,null,null,null,null,null,null,null,null,null,null,null,null,null,null,null,null,"女"]
[null,"【個人情報の保護について】この情報は保養所事業のみに使用し、その目的以外に使用いたしません。"]
[]
[null,"注1）OB会員の方は、従業員№欄に『OB』とご記入下さい。"]
[null,"注2）続柄は、ご家族利用の方のみご記入ください。"]
[null,"注3）本人（社員・OB）から見た家族とは・・・配偶者（妻または夫）・直系尊属（父・母・祖父・祖母）・直系卑属（子･孫）"]
[null,null,"　直系卑属の配偶者（子の妻または夫）・配偶者の直系尊属（妻または夫の父・母・祖母・祖父）"]
[null,null,"　または、同居の兄弟姉妹（同居していない場合：親戚扱い)のことです。"]
[]
[null,"三ケ日保養所ご利用にあたってのお願い"]
[]
["①",null,"素泊まり不可"]
["②",null,"飲み物・食べ物の持ち込みは禁止します。",null,null,null,null,null,null,null,null,null,null,null,null,"※クーラーボックスに入ったものでも、持ち込みは禁止です。"]
[]
["③",null,"使用後のお布団は、シーツ・枕カバーをはずし、それぞれを部屋の隅にまとめておいてください。"]
[]
["④",null,"自動車でお越しの際は、乗り合わせでお願いします。"]
[]
["⑤",null,"利用料は朝食時にお支払ください。（請求書の方除く）"]
[]
["⑥",null,"朝食は7：00～9：00　・　夕食は18：00～22：00の間の1.5時間以内です。"]
[]
["⑦",null,"門限は22：00です。厳守でお願いします。"]
[]
["⑧",null,"研修・会議以外の利用は、全て現金にてお支払をお願い致します。"]
[]
["⑨",null,"23：00以降は、お静かに願います。"]
[]
["⑩",null,"滞在中は、管理人の指示に従ってください。"]
[]
["⑪",null,"保養所へのペット連れ込みは、禁止致します。"]
[null,null,null,null,null,null,null,null,null,null,null,null,null,null,null,null,null,null,null,null,null,null,"TBコーポレートサービス株式会社"]
[null,null,null,null,null,null,null,null,null,null,null,null,null,null,null,null,null,null,null,null,null,null,"〒473-0902"]
[null,null,null,null,null,null,null,null,null,null,null,null,null,null,null,null,null,null,null,null,null,null,"愛知県豊田市大林町8丁目54番地"]
[null,null,null,null,null,null,null,null,null,null,null,null,null,null,null,null,null,null,null,null,null,null,"外線TEL　0565-74-1187",null,null,null,null,null,null,null,null,"内線ＴＥＬ　819-1011"]
[null,null,null,null,null,null,null,null,null,null,null,null,null,null,null,null,null,null,null,null,null,null,"外線FAX　0565-74-1919",null,null,null,null,null,null,null,null,"内線ＦＡＸ　819-1919"]